bitfinex/quotes_SOLUSD_20240626
["timestamp","ask_amount","ask_price","bid_price","bid_amount"]
[1719408986129,0.04312933,137.94,137.93,7.42]
[1719408986423,0.04312933,137.94,137.93,7.59]
[1719408986920,0.04312933,137.94,137.93,27.59]
[1719408989555,0.8516993,137.99,137.93,21.78923773]
[1719408989742,0.8516993,137.99,137.98,25.3659]
[1719408989944,0.8516993,137.99,137.98,7.2474]
[1719408991234,0.8516993,137.99,137.97,18.1196]
[1719408991553,0.8516993,137.99,137.98,7.2474]
[1719408992033,0.8516993,137.99,137.97,25.3675]
[1719408992358,0.8516993,137.99,137.98,7.2474]
[1719408994055,7.2402,138.12,138.0,6.4449]
[1719408994259,4.35075923,138.13,138.06,25.3507]
[1719408994438,7.2408,138.11,138.06,25.3507]
[1719408994969,7.2425,138.08,138.03,18.1113]
[1719408995170,7.2435,138.06,138.01,7.2454]
[1719408995457,18.1061,138.08,138.0,25.3614]
[1719408995668,16.1589,138.09,138.0,18.1155]
[1719408995831,7.2432,138.06,138.0,18.1155]
[1719408996026,15.9889,138.09,137.97,59.4709]
[1719408996262,15.9889,138.09,138.0,53.02]
[1719408996467,7.2421,138.08,138.04,18.1103]
[1719408996682,7.2421,138.08,138.0,53.02]
[1719408996683,15.9889,138.09,138.01,18.114]
[1719408996962,0.17,138.08,138.01,25.3597]
[1719408997254,15.9889,138.09,138.02,7.2452]
[1719408997650,15.9889,138.09,138.03,7.2448]
[1719408997651,7.2429,138.07,138.03,7.2448]
[1719408997957,7.2429,138.07,138.01,18.114]
[1719408997958,7.2433,138.06,138.02,7.2453]
[1719408998154,7.2433,138.06,138.01,18.114]
[1719408998357,18.1055,138.08,138.01,18.114]
[1719408998539,6.0509,138.06,137.98,25.3652]
[1719408999345,7.245,138.03,137.98,25.3652]
[1719408999546,7.245,138.03,137.98,25.3653]
[1719408999840,7.2453,138.02,137.98,25.3653]
[1719409000049,7.2449,138.03,137.99,7.2467]
[1719409000354,7.2439,138.05,138.0,7.2463]
[1719409000672,7.2444,138.04,138.0,7.2463]
[1719409000831,7.2448,138.03,137.99,7.2466]
[1719409001041,6.0509,138.06,137.98,18.118]
[1719409001374,6.0509,138.06,137.95,25.3701]
[1719409001375,7.2463,138.0,137.95,25.3701]
[1719409001537,7.2469,137.99,137.95,18.1213]
[1719409001731,7.2484,137.97,137.92,25.3756]
[1719409002253,7.2484,137.96,137.92,25.3756]
[1719409002562,7.2477,137.98,137.93,7.25]
[1719409002765,7.2479,137.97,137.92,25.3759]
[1719409002978,18.1148,138.01,137.92,25.3759]
[1719409003138,7.2483,137.97,137.92,25.3759]
[1719409004045,7.2475,137.98,137.93,7.2497]
[1719409004653,0.34,138.0,137.89,42.8381]
[1719409004654,0.17,138.0,137.89,42.8381]
[1719409004853,21.9777,138.02,137.96,18.1208]
[1719409005148,7.2458,138.01,137.92,53.02]
[1719409005365,29.2231,138.02,137.97,7.2476]
[1719409005774,22.6897,138.02,137.97,7.2476]
[1719409006178,7.246,138.01,137.97,7.2476]
[1719409006383,7.246,138.01,137.96,7.2483]
[1719409006678,7.2479,137.98,137.92,71.1453]
[1719409006878,7.2479,137.98,137.92,18.1253]
[1719409007054,7.2479,137.98,137.93,1.44975598]
[1719409007251,7.2469,137.99,137.93,1.44975598]
[1719409007455,33.7285,138.02,137.92,18.1253]
[1719409007456,7.2459,138.01,137.96,7.248]
[1719409007864,7.2464,138.0,137.95,7.2488]
[1719409008061,15.4443,138.02,137.93,53.02]
[1719409008300,15.4443,138.02,137.97,7.2477]
[1719409008301,22.6896,138.02,137.97,7.2477]
[1719409008454,22.6896,138.02,137.98,25.3651]
[1719409009453,7.2448,138.03,137.99,7.2467]
[1719409009856,7.2453,138.02,137.98,25.3652]
[1719409010056,7.2453,138.02,137.98,18.1179]
[1719409010559,7.2449,138.03,137.98,18.1179]
[1719409010758,7.2449,138.03,137.98,25.3651]
[1719409011160,7.2446,138.04,137.99,7.2465]
[1719409011364,7.2446,138.04,138.0,7.2463]
[1719409011959,15.8743,138.05,138.02,7.2453]
[1719409012157,7.2427,138.07,138.0,18.1155]
[1719409012361,7.2427,138.07,138.02,7.2448]
[1719409013260,7.2427,138.07,138.02,25.3581]
[1719409013461,7.2432,138.06,138.02,25.3581]
[1719409013684,7.2429,138.07,138.02,25.3581]
[1719409014061,7.2433,138.06,138.02,18.113]
[1719409014263,15.0032,138.08,137.99,18.1163]
[1719409014264,7.2439,138.05,137.99,18.1163]
[1719409014609,18.1072,138.07,137.99,25.3628]
[1719409014765,7.2449,138.03,137.99,25.3628]
[1719409015385,15.0032,138.08,137.97,7.2478]
[1719409015386,7.2454,138.02,137.97,7.2478]
[1719409015584,18.1094,138.05,137.96,18.12]
[1719409015806,7.2469,137.99,137.96,18.12]
[1719409016086,7.2465,138.0,137.96,25.3684]
[1719409016270,7.2459,138.01,137.97,7.2478]
[1719409016982,7.2454,138.02,137.97,7.2476]
[1719409017190,7.246,138.01,137.96,25.3683]
[1719409017484,7.246,138.01,137.97,7.2478]
[1719409018769,7.2464,138.0,137.96,25.3683]
[1719409018986,15.0937,138.01,137.94,7.2493]
[1719409019280,15.0937,138.01,137.93,18.1238]
[1719409019281,7.2479,137.97,137.93,25.3736]
[1719409019697,7.2475,137.98,137.94,7.2494]
[1719409020486,7.2475,137.98,137.93,25.3736]
[1719409021107,7.2471,137.99,137.94,7.2494]
[1719409021305,7.2475,137.98,137.93,25.3736]
[1719409022403,7.2475,137.98,137.94,7.2494]
[1719409022604,7.2479,137.97,137.93,25.3736]
[1719409022803,15.0937,138.01,137.93,18.1238]
[1719409023103,7.2487,137.96,137.91,7.2509]
[1719409023403,18.4559,138.0,137.92,18.1262]
[1719409023600,0.17,138.0,137.95,7.2487]
[1719409023806,15.0937,138.01,137.94,18.1237]
[1719409023990,22.3397,138.01,137.97,7.2479]
[1719409024190,7.2464,138.0,137.96,25.3692]
[1719409024392,15.0937,138.01,137.97,7.2478]
[1719409024593,22.3399,138.01,137.96,25.3692]
[1719409024791,7.2462,138.01,137.96,25.3692]
[1719409025102,7.2462,138.01,137.97,7.2478]
[1719409025407,7.2462,138.01,137.97,7.2477]
[1719409025608,15.2167,138.04,137.98,7.2472]
[1719409025609,7.2453,138.02,137.98,7.2472]
[1719409026087,22.4611,138.04,137.99,7.2468]
[1719409026402,7.245,138.03,137.98,25.3654]
[1719409027187,7.2453,138.02,137.98,25.3654]
[1719409027504,7.2449,138.03,137.99,7.2468]
[1719409027806,15.2167,138.04,138.0,25.3615]
[1719409028000,22.461,138.04,138.0,18.1156]
[1719409028202,7.2448,138.03,138.0,18.1156]
[1719409028408,7.2448,138.03,137.99,7.2466]
[1719409028602,7.2454,138.02,137.98,7.2473]
[1719409028798,7.2449,138.03,137.97,18.1186]
[1719409028998,22.461,138.04,138.0,7.2462]
[1719409029399,7.2448,138.03,137.99,18.1167]
[1719409029608,15.2167,138.04,137.98,7.2469]
[1719409029792,7.2458,138.02,137.97,7.2478]
[1719409029991,15.2167,138.04,137.95,36.2425]
[1719409030199,15.2167,138.04,137.97,53.02]
[1719409030498,22.4612,138.04,138.0,18.1156]
[1719409030818,7.2438,138.05,138.0,18.1156]
[1719409031000,15.8539,138.07,138.02,18.113]
[1719409031201,15.8539,138.07,137.98,36.2356]
[1719409031202,15.8539,138.1,138.0,59.2599]
[1719409031384,261.7038,138.11,138.08,7.2418]
[1719409031385,255.5,138.11,138.08,7.2418]
[1719409031590,7.2401,138.12,138.07,7.2424]
[1719409031790,7.2406,138.11,138.07,5.7424]
[1719409032010,7.2406,138.11,138.06,25.351]
[1719409032313,7.2414,138.1,138.06,18.1079]
[1719409032815,7.2419,138.09,138.04,7.2441]
[1719409033322,3.2934512,138.12,138.03,71.1314]
[1719409033323,18.1019,138.11,138.03,18.1114]
[1719409033497,7.2418,138.09,138.05,7.2436]
[1719409033692,3.2934512,138.12,138.05,18.1089]
[1719409033913,3.2934512,138.12,138.07,7.2426]
[1719409034105,10.5335512,138.12,138.08,7.2421]
[1719409034418,7.2407,138.11,138.07,25.349]
[1719409034626,7.2411,138.1,138.07,18.1066]
[1719409034828,7.2411,138.1,138.06,7.243]
[1719409035209,7.2411,138.1,138.05,7.2436]
[1719409035421,7.2408,138.11,138.06,19.55590812]
[1719409035620,10.5336512,138.12,138.07,7.2423]
[1719409035817,10.5336512,138.12,138.08,7.2421]
[1719409036003,3.2934512,138.12,138.09,7.2416]
[1719409036725,3.2934512,138.12,138.08,24.1624]
[1719409036922,8.0914993,138.13,138.09,7.2415]
[1719409037228,8.0914993,138.13,138.08,25.3472]
[1719409037613,7.24,138.12,138.08,25.3472]
[1719409038022,0.8516993,138.13,138.09,7.2416]
[1719409038536,8.0912993,138.13,138.08,25.3472]
[1719409038827,0.8516993,138.13,138.07,7.2426]
[1719409039222,7.241,138.11,138.06,7.2432]
[1719409039535,7.241,138.11,138.07,7.2425]
[1719409040238,7.2402,138.12,138.07,7.2425]
[1719409041040,7.2406,138.11,138.07,7.2425]
[1719409041332,7.2402,138.12,138.07,7.2425]
[1719409041629,0.8516993,138.13,138.08,7.2417]
[1719409041630,8.0912993,138.13,138.08,7.2417]
[1719409043235,7.24,138.12,138.08,7.2417]
[1719409043531,0.8516993,138.13,138.07,18.1062]
[1719409043917,7.2406,138.11,138.07,25.3486]
[1719409044121,18.9509993,138.13,138.04,18.1096]
[1719409044317,39.74851824,138.12,138.04,18.1096]
[1719409044627,39.74851824,138.12,138.06,18.1079]
[1719409044818,39.74851824,138.12,138.06,25.3507]
[1719409045024,7.2414,138.1,138.06,18.1079]
[1719409045330,39.74851824,138.12,138.04,7.2441]
[1719409045861,7.2418,138.09,138.05,7.2436]
[1719409046018,7.2413,138.1,138.05,7.2436]
[1719409046333,7.2418,138.09,138.05,25.3527]
[1719409046518,7.2418,138.09,138.05,18.1092]
[1719409046723,7.2421,138.08,138.05,18.1092]
[1719409046935,7.2421,138.08,138.04,7.244]
[1719409047717,39.57851824,138.12,138.01,36.2271]
[1719409047952,7.2408,138.11,138.06,18.1078]
[1719409048117,23.8826,138.12,138.08,7.242]
[1719409048322,23.8826,138.12,138.06,18.1078]
[1719409048620,16.6424,138.12,138.08,7.2421]
[1719409048937,0.8516993,138.13,138.08,18.1051]
[1719409049131,0.8516993,138.13,138.1,7.2407]
[1719409050351,0.8516993,138.13,138.1,18.1024]
[1719409050561,0.8516993,138.13,138.1,25.3432]
[1719409050964,0.8516993,138.13,138.1,18.1024]
[1719409051560,0.8516993,138.13,138.1,25.3434]
[1719409051748,0.8516993,138.13,138.1,18.1024]
[1719409051946,0.8516993,138.13,138.12,7.24]
[1719409053045,0.8516993,138.13,138.1,18.1024]
[1719409053273,0.8516993,138.13,138.12,7.24]
[1719409055061,0.8516993,138.13,138.11,7.2404]
[1719409055278,0.8516993,138.13,138.1,18.1024]
[1719409056167,0.8516993,138.13,138.12,7.24]
[1719409057459,0.8516993,138.13,138.12,25.3402]
[1719409062852,0.8516993,138.13,138.12,18.1002]
[1719409063170,0.8516993,138.13,138.12,25.3402]
[1719409066566,0.8516993,138.13,138.12,18.1002]
[1719409066766,0.8516993,138.13,138.12,25.3402]
[1719409068550,0.8516993,138.13,138.12,18.1002]
[1719409069053,0.8516993,138.13,138.09,18.1029]
[1719409069256,7.2404,138.12,138.06,39.4641]
[1719409069554,8.0913993,138.13,138.08,25.3472]
[1719409069759,0.8516993,138.13,138.08,18.1053]
[1719409069976,0.8516993,138.13,138.1,18.1024]
[1719409070181,0.8516993,138.13,138.1,25.3433]
[1719409070560,0.8516993,138.13,138.1,18.1024]
[1719409071483,7.2401,138.12,138.08,7.242]
[1719409071683,23.6487993,138.13,138.08,7.242]
[1719409072071,7.2402,138.12,138.08,7.242]
[1719409072985,23.6486993,138.13,138.08,7.242]
[1719409073173,7.2412,138.1,138.05,7.2436]
[1719409073366,7.2408,138.11,138.06,7.2431]
[1719409073683,16.4090993,138.13,138.06,25.3507]
[1719409073870,0.17,138.12,138.02,16.0089]
[1719409074065,0.17,138.12,138.05,18.1091]
[1719409074271,7.2406,138.11,138.06,7.2428]
[1719409075267,7.2407,138.11,138.07,7.2426]
[1719409075581,23.6489993,138.13,138.08,7.2421]
[1719409075762,23.6489993,138.13,138.07,18.1064]
[1719409075763,16.4090993,138.13,138.09,7.2416]
[1719409076478,7.2401,138.12,138.07,25.3489]
[1719409076689,7.2406,138.11,138.07,18.1064]
[1719409076867,7.2402,138.12,138.07,25.3487]
[1719409078564,7.2407,138.11,138.07,25.3487]
[1719409079264,7.2407,138.11,138.07,18.1064]
[1719409079470,7.2411,138.1,138.06,7.243]
[1719409079991,7.2411,138.1,138.05,7.2435]
[1719409081400,7.2411,138.1,138.06,7.243]
[1719409081778,7.2411,138.1,138.05,7.2435]
[1719409082572,7.2416,138.09,138.04,25.3538]
[1719409082769,7.2416,138.09,138.05,7.2437]
[1719409082978,7.2416,138.09,138.04,25.3538]
[1719409083178,0.17,138.12,138.04,25.3538]
[1719409083374,22.9089,138.07,138.03,7.2444]
[1719409083587,22.9089,138.07,138.02,7.2451]
[1719409083796,15.6662,138.07,138.01,25.359]
[1719409084276,7.2441,138.05,138.01,18.1134]
[1719409084473,7.2443,138.04,138.0,7.2463]
[1719409084672,7.2443,138.04,137.99,7.2467]
[1719409085386,7.2439,138.05,138.0,7.2463]
[1719409085681,7.2444,138.04,138.0,7.2463]
[1719409085879,7.2444,138.04,137.99,7.2467]
[1719409086470,7.2444,138.04,138.0,7.2463]
[1719409086677,7.2448,138.03,137.99,7.2467]
[1719409087368,7.2454,138.02,137.98,18.1174]
[1719409087573,7.2457,138.02,137.97,7.2475]
[1719409087792,7.2457,138.02,137.97,18.1196]
[1719409088096,22.2467,138.02,137.97,18.1196]
[1719409088282,22.2467,138.02,137.96,7.2483]
[1719409088689,7.246,138.01,137.96,7.2483]
[1719409088993,29.4922,138.02,137.97,7.2477]
[1719409089200,23.0285,138.02,137.97,7.2477]
[1719409089572,7.2459,138.01,137.96,25.3689]
[1719409090091,7.2467,138.0,137.96,18.1206]
[1719409090393,7.2469,137.99,137.93,18.124]
[1719409090591,7.2469,137.99,137.95,7.2489]
[1719409090796,7.2465,138.0,137.96,7.2484]
[1719409091298,26.12991484,138.06,138.01,7.2458]
[1719409091607,26.12991484,138.06,138.01,7.2456]
[1719409091897,26.12991484,138.06,138.01,25.36]
[1719409092083,7.2439,138.05,138.01,25.36]
[1719409092290,18.88631484,138.06,138.01,18.1144]
[1719409092482,18.88631484,138.06,138.03,18.1114]
[1719409092786,3.29721484,138.06,138.05,7.2437]
[1719409093680,3.29721484,138.06,138.05,8.69219864]
[1719409093882,3.29721484,138.06,138.05,7.2437]
[1719409094702,3.29721484,138.06,138.04,6.6032]
[1719409095002,3.29721484,138.06,138.04,7.244]
[1719409095184,3.29721484,138.06,138.05,7.2437]
[1719409095495,3.29721484,138.06,138.03,18.1114]
[1719409095701,3.29721484,138.06,138.02,7.2452]
[1719409096193,3.29721484,138.06,138.03,7.2447]
[1719409096573,3.29721484,138.06,138.02,25.3579]
[1719409096777,3.29721484,138.06,138.02,18.1128]
[1719409096982,16.6246,138.05,137.95,6.2097]
[1719409097182,7.2451,138.03,137.99,18.1166]
[1719409097415,23.8685,138.05,137.99,18.1166]
[1719409097708,23.8685,138.05,138.0,7.2462]
[1719409097925,23.8685,138.05,137.99,25.3634]
[1719409098099,23.8685,138.05,138.0,7.2462]
[1719409098414,16.6246,138.05,138.0,7.2462]
[1719409098606,23.8687,138.05,138.0,7.2462]
[1719409099290,16.6246,138.05,137.96,18.1204]
[1719409099588,16.6246,138.05,137.97,7.2478]
[1719409099902,16.6246,138.05,137.98,7.2472]
[1719409099903,7.2448,138.03,137.98,7.2472]
[1719409100500,7.2455,138.02,137.97,7.2478]
[1719409100694,0.17,138.04,137.96,18.1204]
[1719409100899,7.2459,138.01,137.96,25.3687]
[1719409101610,7.2453,138.02,137.97,7.2478]
[1719409101813,7.2447,138.04,137.98,7.247]
[1719409102109,16.6246,138.05,138.0,18.1153]
[1719409102315,7.2449,138.03,137.98,7.2472]
[1719409102504,7.2448,138.03,137.98,7.2473]
[1719409103291,7.2453,138.02,137.97,18.1193]
[1719409103491,18.1099,138.05,137.97,18.1193]
[1719409103696,6.1892,138.1,138.01,59.5056]
[1719409103892,6.1892,138.1,138.05,18.1088]
[1719409104112,6.1892,138.1,138.07,7.2426]
[1719409104307,6.1892,138.1,138.06,7.243]
[1719409104509,13.4303,138.1,138.05,25.3523]
[1719409104716,13.4303,138.1,138.06,7.2432]
[1719409104908,16.9780993,138.13,138.07,7.2422]
[1719409105508,16.9780993,138.13,138.05,18.1088]
[1719409105704,7.2415,138.1,138.05,25.3523]
[1719409106011,7.2413,138.1,138.05,25.3523]
[1719409107207,16.9780993,138.13,138.07,18.106]
[1719409107416,24.2179993,138.13,138.08,7.2416]
[1719409107602,7.2401,138.12,138.08,7.2416]
[1719409107803,24.2177993,138.13,138.08,7.2416]
[1719409108005,7.2402,138.12,138.07,25.3485]
[1719409108306,7.2406,138.11,138.07,18.106]
[1719409109707,7.2411,138.1,138.06,7.2431]
[1719409110422,7.2422,138.08,138.04,25.3537]
[1719409110623,7.2418,138.09,138.04,25.3537]
[1719409111130,7.2418,138.09,138.05,7.2436]
[1719409111418,7.2412,138.1,138.06,7.2432]
[1719409111724,16.9780993,138.13,138.06,7.2432]
[1719409111725,7.2408,138.11,138.06,7.2432]
[1719409112024,35.0771993,138.13,138.05,7.2435]
[1719409112223,0.34,138.12,138.05,7.2435]
[1719409113124,7.2412,138.1,138.06,7.2431]
[1719409113319,7.2412,138.1,138.05,7.2435]
[1719409113716,7.2422,138.08,138.04,18.1095]
[1719409113919,0.34,138.12,138.01,25.3589]
[1719409113920,7.2434,138.06,138.01,25.3589]
[1719409114116,7.2429,138.07,138.02,7.2452]
[1719409114312,7.2423,138.08,138.03,7.2447]
[1719409115323,0.17,138.12,138.03,18.1116]
[1719409115517,7.2416,138.1,138.05,7.2436]
[1719409115721,20.17,138.12,138.05,7.2436]
[1719409115722,7.2416,138.09,138.05,7.2436]
[1719409116222,7.2416,138.09,138.04,7.244]
[1719409116601,7.2409,138.11,138.05,18.1088]
[1719409116829,7.2412,138.1,138.06,7.243]
[1719409117211,7.2417,138.09,138.05,25.3524]
[1719409117724,7.2417,138.09,138.05,18.1088]
[1719409117921,7.2417,138.09,138.05,25.3525]
[1719409118604,7.2411,138.1,138.05,25.3525]
[1719409118802,0.17,138.12,138.02,36.2261]
[1719409119114,7.2405,138.12,138.07,25.3488]
[1719409119320,7.2408,138.11,138.07,18.1065]
[1719409120033,7.2408,138.11,138.07,25.349]
[1719409121014,7.2408,138.11,138.07,18.1065]
[1719409121724,7.2408,138.11,138.07,25.349]
[1719409121923,7.2421,138.09,138.04,18.1098]
[1719409122130,7.2421,138.09,138.04,25.3535]
[1719409122605,35.0781993,138.13,138.04,18.1098]
[1719409122811,18.1017,138.11,138.03,7.2447]
[1719409123121,7.2431,138.07,138.02,7.2451]
[1719409124124,7.2431,138.07,138.03,7.2447]
[1719409124430,7.2433,138.06,138.02,7.2452]
[1719409124618,0.17,138.1,138.01,25.3592]
[1719409124619,7.2438,138.05,138.01,25.3592]
[1719409126223,7.2438,138.05,138.01,18.1136]
[1719409126423,7.2438,138.05,138.01,25.3593]
[1719409126624,7.2433,138.06,138.02,7.2452]
[1719409126825,7.2433,138.06,138.01,18.1136]
[1719409126826,23.0251,138.07,138.03,7.2446]
[1719409127019,15.7823,138.07,138.04,7.2442]
[1719409127727,7.2418,138.09,138.05,7.2437]
[1719409128311,22.8128,138.1,138.05,7.2437]
[1719409128511,15.5716,138.1,138.06,7.2429]
[1719409128736,22.8127,138.1,138.06,7.2429]
[1719409129033,15.5716,138.1,138.06,7.2429]
[1719409129232,22.8131,138.1,138.05,7.2436]
[1719409129410,15.5716,138.1,138.05,7.2436]
[1719409129619,7.2421,138.08,138.04,18.1104]
[1719409129817,15.5716,138.1,138.04,18.1104]
[1719409130018,15.5716,138.1,138.04,25.3546]
[1719409131438,7.2419,138.09,138.04,25.3546]
[1719409131739,7.2419,138.09,138.05,7.2436]
[1719409131918,7.2419,138.09,138.04,25.3544]
[1719409134140,7.2424,138.08,138.04,25.3544]
[1719409134923,7.2427,138.07,138.04,18.1104]
[1719409135140,7.2427,138.07,138.03,7.2446]
[1719409135343,7.2427,138.07,138.02,7.2451]
[1719409135519,7.2433,138.06,138.01,18.1134]
[1719409136537,7.2428,138.07,138.02,7.2449]
[1719409137836,7.2433,138.06,138.02,7.2449]
[1719409138133,7.2429,138.07,138.02,7.2449]
[1719409138338,7.2429,138.07,138.03,7.2447]
[1719409139755,7.2429,138.07,138.02,7.2451]
[1719409139937,33.6745,138.1,138.02,7.2451]
[1719409139938,7.2434,138.06,138.02,7.2451]
[1719409140261,7.2438,138.05,138.01,25.359]
[1719409140472,7.2434,138.06,138.01,25.359]
[1719409140765,7.2429,138.07,138.02,7.2452]
[1719409141544,7.2429,138.07,138.03,7.2446]
[1719409142773,7.2441,138.05,138.01,18.1134]
[1719409143147,7.2441,138.05,138.01,25.3589]
[1719409143869,7.2434,138.06,138.01,25.3589]
[1719409144052,7.2434,138.06,138.02,7.2452]
[1719409144446,3.41831803,138.07,138.02,18.112]
[1719409144663,3.41831803,138.07,138.06,7.2432]
[1719409144966,3.41831803,138.07,138.05,7.2435]
[1719409145466,3.41831803,138.07,138.06,7.2432]
[1719409145666,3.41831803,138.07,138.05,7.2435]
[1719409146246,3.41831803,138.07,138.05,8.69212255]
[1719409147063,3.41831803,138.07,138.04,18.1106]
[1719409147574,3.41831803,138.07,138.04,25.3548]
[1719409147877,10.66121803,138.07,138.03,7.2445]
[1719409148075,3.41831803,138.07,138.01,25.3588]
[1719409148375,7.2434,138.06,138.02,7.2452]
[1719409149068,10.66121803,138.07,138.02,7.2452]
[1719409149258,3.41831803,138.07,138.05,7.2433]
[1719409149845,3.41831803,138.07,138.04,7.2441]
[1719409150251,3.41831803,138.07,138.03,18.1118]
[1719409150465,3.41831803,138.07,138.04,7.244]
[1719409151670,3.41831803,138.07,138.03,18.1118]
[1719409152265,10.66141803,138.07,138.03,18.1118]
[1719409154080,10.66141803,138.07,138.03,25.3565]
[1719409155491,10.66141803,138.07,138.03,18.1118]
[1719409155654,7.2432,138.06,138.03,18.1118]
[1719409156286,3.41831803,138.07,138.03,18.1118]
[1719409156287,7.2429,138.07,138.03,18.1118]
[1719409156450,0.8516993,138.13,138.12,7.24]
[1719409156655,0.8516993,138.13,138.12,8.47742637]
[1719409156871,0.8516993,138.13,138.12,7.24]
[1719409159385,0.8516993,138.13,138.11,7.2405]
[1719409161174,0.8516993,138.13,138.12,7.24]
[1719409161383,0.8516993,138.13,138.11,7.2404]
[1719409161888,0.8516993,138.13,138.1,18.102]
[1719409162183,0.8516993,138.13,138.1,25.343]
[1719409162765,0.8516993,138.13,138.11,7.2405]
[1719409164085,0.8516993,138.13,138.1,25.3429]
[1719409164483,0.8516993,138.13,138.08,7.242]
[1719409164786,16.3171,138.12,138.06,7.2427]
[1719409165375,7.2412,138.1,138.05,7.2435]
[1719409165562,7.2411,138.1,138.06,7.2431]
[1719409165769,7.2411,138.1,138.05,7.2437]
[1719409166075,7.2407,138.11,138.06,7.243]
[1719409166271,7.2407,138.11,138.07,7.2426]
[1719409166479,7.2412,138.1,138.06,25.3508]
[1719409166868,7.2407,138.11,138.06,25.3508]
[1719409167663,6.4606,138.11,138.03,18.1112]
[1719409167885,0.34,138.1,138.03,18.1112]
[1719409168299,0.34,138.1,138.0,33.9716]
[1719409168580,7.2433,138.06,138.01,7.2457]
[1719409169979,7.2433,138.06,138.02,7.2452]
[1719409170162,7.2428,138.07,138.03,7.2447]
[1719409171884,7.2428,138.07,138.02,25.3582]
[1719409172975,7.2428,138.07,138.03,7.2447]
[1719409173510,7.2428,138.07,138.02,25.3582]
[1719409173690,7.2433,138.06,138.02,18.1131]
[1719409173983,4.57013357,138.06,138.04,7.2439]
[1719409174182,4.57013357,138.06,138.02,25.3582]
[1719409174371,11.81343357,138.06,138.02,25.3582]
[1719409175693,11.81343357,138.06,138.02,18.1131]
[1719409176691,11.81343357,138.06,138.02,25.3583]
[1719409177388,11.81343357,138.06,138.02,18.1131]
[1719409177894,11.81343357,138.06,138.02,25.3582]
[1719409178092,7.2438,138.05,138.01,7.2456]
[1719409178288,7.2445,138.04,138.0,7.2461]
[1719409179184,7.2444,138.04,137.99,25.3628]
[1719409179385,7.2453,138.02,137.97,7.2474]
[1719409179594,7.2453,138.02,137.98,7.2474]
[1719409180088,7.2454,138.02,137.97,7.2477]
[1719409180395,7.2454,138.02,137.96,19.56958698]
[1719409180396,7.2461,138.01,137.96,25.3683]
[1719409180590,7.2461,138.01,137.97,7.2477]
[1719409181479,7.2461,138.01,137.96,25.3684]
[1719409181681,15.6315,138.02,137.96,18.1201]
[1719409181881,7.2469,137.99,137.95,7.2488]
[1719409182300,7.2465,138.0,137.95,7.2488]
[1719409182501,7.2465,138.0,137.95,25.3712]
[1719409182703,7.2465,138.0,137.96,7.2484]
[1719409183195,0.17,138.01,137.94,7.2493]
[1719409183196,7.2474,137.98,137.94,7.2493]
[1719409183698,7.2474,137.98,137.92,71.1453]
[1719409183878,7.2474,137.98,137.93,7.2498]
[1719409184083,7.2474,137.98,137.89,21.4005]
[1719409184084,7.249,137.95,137.89,18.1297]
[1719409184283,7.249,137.95,137.9,7.2512]
[1719409184909,7.2497,137.94,137.9,7.2512]
[1719409185106,7.2492,137.95,137.9,7.2515]
[1719409185322,7.2498,137.94,137.89,25.3816]
[1719409185522,7.2498,137.94,137.9,7.2516]
[1719409186017,7.249,137.95,137.91,7.2508]
[1719409186321,7.4186,137.96,137.91,25.3784]
[1719409186693,7.249,137.95,137.91,25.3784]
[1719409187217,7.2495,137.94,137.91,18.1276]
[1719409187422,7.2491,137.95,137.91,7.251]
[1719409188211,7.2491,137.95,137.85,82.05252207]